bitfinex/quotes_SOLUSD_20250209
["timestamp","ask_amount","ask_price","bid_price","bid_amount"]
[1739086184977,0.063,204.8,204.76,21.52794193]
[1739086185173,0.063,204.8,204.77,19.03871304]
[1739086185693,0.063,204.8,204.78,14.66282853]
[1739086185869,0.033,204.8,204.79,19.40215924]
[1739086186886,0.033,204.8,204.79,22.69476924]
[1739086188986,0.033,204.8,204.79,9.28292071]
[1739086189193,0.033,204.8,204.79,3.4181]
[1739086190486,0.033,204.8,204.79,8.91947451]
[1739086191200,0.033,204.8,204.79,22.33132304]
[1739086191390,0.033,204.8,204.79,106.45681304]
[1739086192010,0.033,204.8,204.79,105.33132304]
[1739086194309,0.033,204.8,204.79,99.82994853]
[1739086194821,0.033,204.8,204.79,86.4181]
[1739086196691,0.033,204.8,204.79,91.91947451]
[1739086197397,0.033,204.8,204.79,105.33132304]
[1739086197602,0.033,204.8,204.79,105.69499596]
[1739086199510,0.033,204.8,204.79,241.62048596]
[1739086199701,0.033,204.8,204.79,241.25681304]
[1739086200500,0.033,204.8,204.79,241.38230304]
[1739086200702,0.0001,204.8,204.79,263.38780108]
[1739086201111,0.0001,204.8,204.79,241.38230304]
[1739086201415,0.0001,204.8,204.79,241.25681304]
[1739086203719,0.0001,204.8,204.79,263.38780108]
[1739086203907,0.0101,204.81,204.8,14.66282853]
[1739086204105,0.0101,204.81,204.8,261.33299369]
[1739086204325,0.0101,204.81,204.8,260.96970108]
[1739086204926,0.0101,204.81,204.8,264.26211108]
[1739086205320,0.0101,204.81,204.8,264.38760108]
[1739086205942,0.063,204.83,204.82,34.66282853]
[1739086206139,0.063,204.83,204.82,41.52726161]
[1739086206815,0.063,204.89,204.82,41.52726161]
[1739086206816,0.063,204.89,204.87,13.41184853]
[1739086207043,0.063,204.89,204.88,26.39806968]
[1739086207435,0.063,204.89,204.88,26.27257968]
[1739086208239,0.063,204.89,204.88,268.32905772]
[1739086208240,0.0001,204.89,204.88,268.32905772]
[1739086208542,0.063,204.93,204.92,13.41184853]
[1739086208722,0.063,204.93,204.92,19.27571414]
[1739086208921,0.063,204.93,204.92,22.69161414]
[1739086212543,0.063,204.93,204.92,8.91727451]
[1739086212841,0.063,204.93,204.92,9.27994612]
[1739086213139,0.063,204.93,204.92,22.69179465]
[1739086213818,0.063,204.93,204.92,83.0]
[1739086216046,5.56437451,204.93,204.86,5.50137451]
[1739086216345,5.56437451,204.93,204.87,3.58]
[1739086216847,5.56437451,204.93,204.86,88.50137451]
[1739086217028,5.50137451,204.91,204.86,83.0]
[1739086217226,5.50137451,204.9,204.86,86.4169]
[1739086217539,5.50137451,204.9,204.86,83.0]
[1739086217919,5.50137451,204.9,204.85,3.417]
[1739086219245,5.50137451,204.9,204.82,88.50137451]
[1739086219447,5.50137451,204.9,204.83,3.4174]
[1739086219743,5.50137451,204.9,204.83,8.91877451]
[1739086219950,5.50137451,204.92,204.85,5.50137451]
[1739086220947,0.063,204.93,204.87,5.50137451]
[1739086221447,0.063,204.93,204.88,3.4166]
[1739086221945,0.063,204.93,204.88,8.91797451]
[1739086222150,0.063,204.93,204.89,5.50137451]
[1739086223264,0.063,204.93,204.9,3.4163]
[1739086224337,0.063,204.93,204.89,3.4164]
[1739086227759,5.56437451,204.93,204.89,3.4164]
[1739086228567,5.50137451,204.91,204.88,86.4166]
[1739086228740,5.50137451,204.9,204.85,3.4171]
[1739086229250,0.97818415,204.93,204.82,97.04507451]
[1739086229251,5.50137451,204.88,204.83,3.4174]
[1739086229443,5.50137451,204.88,204.85,0.03]
[1739086230256,5.50137451,204.87,204.85,0.03]
[1739086230441,5.50137451,204.88,204.85,0.03]
[1739086231461,27.11677451,204.89,204.85,0.03]
[1739086234993,1.6154,204.89,204.85,0.03]
[1739086235278,5.75235451,204.86,204.85,0.03]
[1739086235461,6.66784832,204.86,204.85,0.03]
[1739086235660,6.54235832,204.86,204.85,0.03]
[1739086235869,6.66784832,204.86,204.85,0.03]
[1739086237756,10.08474832,204.86,204.85,0.03]
[1739086240963,24.49659685,204.86,204.85,0.03]
[1739086241166,26.10029685,204.86,204.85,0.03]
[1739086242172,25.10029685,204.86,204.85,0.03]
[1739086243386,26.10029685,204.86,204.85,0.03]
[1739086243581,27.10029685,204.86,204.85,0.03]
[1739086243888,33.08745289,204.86,204.85,0.03]
[1739086244069,32.08745289,204.86,204.85,0.03]
[1739086244685,31.08745289,204.86,204.85,0.03]
[1739086244876,25.10029685,204.86,204.85,0.03]
[1739086245587,26.10029685,204.86,204.85,0.03]
[1739086246478,25.10029685,204.86,204.85,0.03]
[1739086247082,7.23056451,204.86,204.85,0.03]
[1739086247570,5.62686451,204.86,204.85,0.03]
[1739086248072,10.08467947,204.86,204.85,0.03]
[1739086248271,23.496528,204.86,204.85,0.03]
[1739086248491,30.36651408,204.86,204.85,0.03]
[1739086248870,113.36651408,204.86,204.85,0.03]
[1739086249071,112.45108912,204.86,204.85,0.03]
[1739086250591,115.54077822,204.86,204.85,0.03]
[1739086253092,32.54077822,204.86,204.85,0.03]
[1739086253287,0.12549,204.81,204.79,0.03]
[1739086253488,9.75788111,204.8,204.79,0.03]
[1739086253790,31.76079325,204.8,204.79,0.03]
[1739086254787,23.16972964,204.8,204.79,0.03]
[1739086255103,8.84204361,204.8,204.79,0.03]
[1739086258202,8.71655361,204.8,204.79,0.03]
[1739086260111,8.84204361,204.8,204.79,0.03]
[1739086260293,35.1785883,204.8,204.79,0.03]
[1739086262489,0.12549,204.74,204.65,105.26166361]
[1739086262703,8.59106361,204.72,204.65,105.26166361]
[1739086264088,8.59106361,204.72,204.66,3.4203]
[1739086264293,28.71655361,204.74,204.66,12.01136361]
[1739086264491,20.0,204.73,204.66,12.01136361]
[1739086265202,20.0,204.73,204.67,8.59106361]
[1739086265514,20.0,204.73,204.68,8.59106361]
[1739086266313,20.0,204.73,204.69,3.4198]
[1739086267085,8.71655361,204.72,204.66,3.4203]
[1739086267404,0.25098,204.66,204.65,0.03]
[1739086267609,29.75844264,204.66,204.65,0.03]
[1739086267816,28.84204361,204.66,204.65,0.03]
[1739086268109,20.0,204.66,204.65,0.03]
[1739086269409,8.59106361,204.68,204.65,0.03]
[1739086269586,0.12549,204.67,204.65,0.03]
[1739086270710,8.59106361,204.67,204.65,0.03]
[1739086271405,20.0,204.67,204.65,0.03]
[1739086271702,8.59106361,204.71,204.65,0.03]
[1739086271902,0.12549,204.7,204.65,0.03]
[1739086272111,8.59106361,204.75,204.67,8.59106361]
[1739086272806,20.0,204.72,204.67,8.59106361]
[1739086273199,8.59106361,204.73,204.66,8.59106361]
[1739086273407,8.59106361,204.73,204.67,3.4201]
[1739086273605,0.12549,204.71,204.67,3.4201]
[1739086274410,8.71655361,204.71,204.67,3.4201]
[1739086274711,8.59106361,204.71,204.65,3.4503]
[1739086275522,8.59106361,204.7,204.65,0.03]
[1739086275835,8.59106361,204.66,204.65,0.03]
[1739086275988,8.71655361,204.67,204.65,0.03]
[1739086276312,9.75829152,204.66,204.65,0.03]
[1739086276494,23.17014005,204.66,204.65,0.03]
[1739086277518,26.59044005,204.66,204.65,0.03]
[1739086278012,9.75829152,204.66,204.65,0.03]
[1739086279204,8.71655361,204.66,204.65,0.03]
[1739086280016,8.84204361,204.66,204.65,0.03]
[1739086283021,22.25389214,204.66,204.65,0.03]
[1739086283217,25.67419214,204.66,204.65,0.03]
[1739086288209,8.71655361,204.66,204.65,0.03]
[1739086288411,0.12549,204.66,204.65,0.03]
[1739086288918,8.59106361,204.67,204.65,0.03]
[1739086289125,8.59106361,204.68,204.65,0.03]
[1739086289330,8.59106361,204.69,204.65,0.03]
[1739086289827,20.12549,204.69,204.65,0.03]
[1739086290322,8.59106361,204.7,204.65,0.03]
[1739086290502,8.59106361,204.71,204.65,0.03]
[1739086290827,8.59106361,204.7,204.65,0.03]
[1739086291318,0.12549,204.69,204.65,0.03]
[1739086292809,20.0,204.67,204.65,0.03]
[1739086293325,20.0,204.66,204.65,0.03]
[1739086294220,8.71655361,204.69,204.65,0.03]
[1739086295626,8.59106361,204.69,204.65,0.03]
[1739086295823,8.59106361,204.71,204.65,0.03]
[1739086296015,8.59106361,204.71,204.65,83.03]
[1739086296204,20.0,204.68,204.65,83.03]
[1739086296905,4.33526581,204.73,204.65,0.03]
[1739086296906,8.71655361,204.66,204.65,0.03]
[1739086299807,20.0,204.67,204.65,0.03]
[1739086300004,91.59106361,204.7,204.65,0.03]
[1739086300421,8.59106361,204.74,204.66,8.59106361]
[1739086300726,0.12549,204.73,204.66,8.59106361]
[1739086301228,8.59106361,204.74,204.67,8.59106361]
[1739086301429,0.12549,204.74,204.68,8.59106361]
[1739086301623,0.12549,204.74,204.67,8.59106361]
[1739086301924,0.12549,204.74,204.68,8.59106361]
[1739086302117,20.0,204.71,204.67,12.01116361]
[1739086302316,20.0,204.71,204.67,3.4201]
[1739086303126,8.71655361,204.74,204.67,3.4201]
[1739086303324,8.71655361,204.74,204.67,12.01116361]
[1739086303834,8.71655361,204.74,204.67,3.4201]
[1739086304529,20.0,204.73,204.7,8.59106361]
[1739086305333,20.0,204.73,204.69,8.59106361]
[1739086306428,8.59106361,204.74,204.7,3.4196]
[1739086306621,8.71655361,204.77,204.7,12.01066361]
[1739086306929,8.65406361,204.79,204.72,8.59106361]
[1739086307316,0.063,204.79,204.72,8.59106361]
[1739086307826,0.18849,204.79,204.72,8.59106361]
[1739086308537,0.18849,204.79,204.73,3.4191]
[1739086308720,0.063,204.79,204.73,3.4191]
[1739086309337,8.59106361,204.77,204.73,3.4191]
[1739086310039,8.59106361,204.76,204.71,4.9715]
[1739086310642,8.59106361,204.75,204.71,1.5522]
[1739086311239,8.59106361,204.74,204.71,1.5522]
[1739086312441,8.59106361,204.75,204.71,1.5522]
[1739086312930,8.59106361,204.74,204.71,1.5522]
[1739086313243,8.59106361,204.72,204.7,0.03]
[1739086313741,8.59106361,204.73,204.7,0.03]
[1739086313941,8.59106361,204.74,204.7,0.03]
[1739086314119,8.59106361,204.76,204.7,0.03]
[1739086314327,8.59106361,204.77,204.7,8.62106361]
[1739086315432,28.77955361,204.79,204.72,8.59106361]
[1739086315628,28.65406361,204.79,204.73,1.5037]
[1739086315833,0.063,204.79,204.73,10.09476361]
[1739086317346,0.063,204.79,204.74,3.4189]
[1739086319245,8.65406361,204.79,204.74,3.4189]
[1739086319454,8.59106361,204.78,204.73,1.5037]
[1739086319751,8.59106361,204.78,204.73,4.9228]
[1739086320057,8.59106361,204.76,204.71,3.4194]
[1739086320242,8.59106361,204.75,204.7,86.4496]
[1739086320563,8.59106361,204.74,204.7,86.4496]
[1739086320736,8.59106361,204.75,204.7,86.4496]
[1739086321778,8.59106361,204.72,204.7,0.03]
[1739086323450,8.59106361,204.71,204.7,0.03]
[1739086323647,8.84204361,204.71,204.7,0.03]
[1739086323854,9.75827095,204.71,204.7,0.03]
[1739086324152,23.17011948,204.71,204.7,0.03]
[1739086326349,36.18058309,204.71,204.7,0.03]
[1739086326741,35.18058309,204.71,204.7,0.03]
[1739086326949,26.58951948,204.71,204.7,0.03]
[1739086327151,9.75827095,204.71,204.7,0.03]
[1739086327360,8.71655361,204.71,204.7,0.03]
[1739086332560,8.59106361,204.73,204.7,0.03]
[1739086333358,20.0,204.71,204.7,0.03]
[1739086335356,8.59106361,204.73,204.7,0.03]
[1739086335543,8.59106361,204.74,204.7,0.03]
[1739086337373,0.12549,204.74,204.7,0.03]
[1739086338061,8.71655361,204.74,204.7,0.03]
[1739086338872,0.12549,204.72,204.7,0.03]
[1739086339166,8.71655361,204.71,204.7,0.03]
[1739086342260,8.59106361,204.75,204.7,0.03]
[1739086342470,8.59106361,204.76,204.7,0.03]
[1739086342643,8.59106361,204.77,204.7,0.03]
[1739086342846,8.59106361,204.77,204.7,8.62106361]
[1739086343256,20.0,204.74,204.7,8.62106361]
[1739086344657,8.59106361,204.78,204.71,12.01046361]
[1739086344864,0.063,204.79,204.73,8.59106361]
[1739086345163,8.77955361,204.79,204.72,8.59106361]
[1739086345365,8.59106361,204.78,204.71,86.4194]
[1739086346158,8.59106361,204.77,204.71,86.4194]
[1739086346866,8.59106361,204.78,204.71,95.01046361]
[1739086347168,28.77955361,204.79,204.71,95.01046361]
[1739086347356,28.77955361,204.79,204.72,8.59106361]
[1739086348169,28.77955361,204.79,204.72,83.0]
[1739086348346,8.59106361,204.78,204.72,83.0]
[1739086349163,8.65406361,204.78,204.73,3.4191]
[1739086349369,0.063,204.78,204.75,8.59106361]
[1739086349568,0.063,204.78,204.77,8.59106361]
[1739086350371,0.063,204.78,204.76,8.59106361]
[1739086350557,0.063,204.78,204.75,8.59106361]
[1739086351061,0.063,204.78,204.76,3.4186]
[1739086354084,0.063,204.78,204.75,3.4188]
[1739086355586,0.063,204.78,204.75,12.00986361]
[1739086357891,0.063,204.78,204.75,3.4188]
[1739086358594,0.063,204.78,204.75,12.00986361]
[1739086359994,0.063,204.78,204.75,95.00986361]
[1739086360472,0.063,204.78,204.75,91.59106361]
[1739086360671,0.063,204.78,204.75,88.49683555]
[1739086360888,0.063,204.78,204.75,83.0]
[1739086361287,0.063,204.78,204.75,88.49683555]
[1739086361693,0.063,204.78,204.77,8.91523555]
[1739086362372,0.063,204.78,204.77,3.4184]
[1739086365075,0.063,204.78,204.77,5.49683555]
[1739086367101,0.063,204.78,204.77,3.4184]
[1739086368904,0.063,204.78,204.77,88.86112734]
[1739086369101,0.063,204.78,204.77,238.07297587]
[1739086369277,0.063,204.79,204.78,13.41184853]
[1739086369482,0.063,204.79,204.78,237.70868408]
[1739086370501,0.063,204.79,204.78,238.90902275]
[1739086370686,0.063,204.79,204.78,242.32732275]
[1739086371302,0.063,204.79,204.78,241.12698408]
[1739086375215,0.063,204.79,204.78,241.25247408]
[1739086376112,0.063,204.8,204.79,0.12549]
[1739086376294,0.063,204.89,204.87,5.49683555]
[1739086376488,0.063,204.89,204.88,5.49683555]
[1739086376912,0.063,204.89,204.88,8.91343555]
[1739086379204,0.063,204.89,204.85,8.91393555]
[1739086379688,0.063,204.89,204.86,5.49683555]
[1739086379889,0.063,204.89,204.85,3.4171]
[1739086380522,0.18849,204.89,204.83,5.49683555]
[1739086380712,5.68532555,204.89,204.83,3.4173]
[1739086381028,5.68532555,204.89,204.81,86.4177]
[1739086381029,5.49683555,204.87,204.81,86.4177]
[1739086381191,5.49683555,204.87,204.81,3.4177]
[1739086381886,5.49683555,204.88,204.81,8.91453555]
[1739086382508,0.12549,204.87,204.81,8.91453555]
[1739086382709,0.063,204.89,204.84,5.49683555]
[1739086382893,0.063,204.89,204.85,5.49683555]
[1739086383092,20.063,204.89,204.85,5.49683555]
[1739086383495,5.49683555,204.87,204.81,3.4177]
[1739086383818,5.62232555,204.88,204.81,8.91453555]
[1739086384111,0.12549,204.88,204.81,5.49683555]
[1739086384522,0.12549,204.88,204.82,5.49683555]
[1739086384918,0.063,204.89,204.84,5.49683555]
[1739086385807,0.063,204.89,204.83,5.49683555]
[1739086386002,5.49683555,204.88,204.81,8.91463555]
[1739086386619,0.18849,204.89,204.83,5.49683555]
[1739086387114,0.063,204.89,204.83,5.49683555]
[1739086387316,0.063,204.89,204.85,5.49683555]
[1739086387613,0.063,204.89,204.87,5.49683555]
[1739086387816,0.063,204.89,204.87,88.49683555]
[1739086388121,0.063,204.89,204.87,91.91353555]
[1739086389918,0.063,204.89,204.88,5.49683555]
[1739086390118,0.063,204.89,204.88,9.27666106]
[1739086390423,0.063,204.89,204.88,92.27666106]
[1739086391511,0.063,204.89,204.88,91.91343555]
[1739086391919,0.063,204.89,204.88,86.4166]
[1739086394925,0.063,204.89,204.88,83.0]
[1739086395710,0.063,204.89,204.88,86.4166]
[1739086396521,0.063,204.89,204.88,83.0]
[1739086396707,0.063,204.89,204.84,88.49683555]
[1739086396914,0.063,204.89,204.84,83.0]
[1739086397411,0.063,204.89,204.84,86.4172]
[1739086397609,0.063,204.89,204.84,83.0]
[1739086397816,0.18849,204.89,204.83,3.4173]
[1739086398024,5.68532555,204.89,204.81,144.71443555]
[1739086398229,5.68532555,204.89,204.81,8.91443555]
[1739086398823,5.49683555,204.88,204.81,3.4176]
[1739086400223,5.68532555,204.89,204.81,5.49683555]
[1739086400408,0.12549,204.87,204.81,5.49683555]
[1739086401631,0.12549,204.87,204.81,8.91443555]
[1739086402132,5.62232555,204.87,204.81,3.4176]
[1739086403130,5.62232555,204.87,204.8,3.4479]
[1739086404044,5.62232555,204.87,204.8,0.03]
[1739086404045,5.49683555,204.83,204.8,0.03]
[1739086404834,5.49683555,204.84,204.8,0.03]
[1739086406636,11.95773555,204.86,204.8,0.03]
[1739086406837,5.49683555,204.88,204.81,5.49683555]
[1739086407312,0.12549,204.87,204.81,5.49683555]
[1739086407511,5.49683555,204.88,204.82,3.4176]
[1739086408538,5.49683555,204.87,204.82,3.4176]
[1739086409019,25.49683555,204.87,204.82,3.4176]
[1739086409539,25.49683555,204.87,204.8,5.52683555]
[1739086409765,20.0,204.87,204.81,8.91463555]
[1739086409926,0.063,204.89,204.83,5.49683555]
[1739086410632,0.063,204.89,204.83,83.0]
[1739086410820,0.063,204.89,204.85,5.49683555]
[1739086411226,0.063,204.89,204.87,5.49683555]
[1739086411434,0.063,204.89,204.87,88.49683555]
[1739086411634,0.063,204.89,204.88,3.4166]
[1739086413038,0.063,204.89,204.87,83.0]
[1739086413540,5.55983555,204.89,204.87,83.0]
[1739086416251,5.49683555,204.88,204.87,83.0]
[1739086416551,5.49683555,204.88,204.83,86.4173]
[1739086416750,5.55983555,204.89,204.83,86.4173]
[1739086416934,0.063,204.89,204.83,91.91413555]
[1739086417547,0.063,204.89,204.84,5.49683555]
[1739086417842,0.063,204.89,204.85,8.91393555]
[1739086418852,0.063,204.89,204.86,5.49683555]
[1739086419047,0.063,204.89,204.87,5.49683555]
[1739086419447,0.063,204.89,204.86,5.49683555]
[1739086419639,0.063,204.89,204.87,5.49683555]
[1739086419831,0.063,204.89,204.86,5.49683555]
[1739086420245,0.063,204.89,204.87,3.4168]
[1739086421649,0.063,204.89,204.86,3.4169]
[1739086421854,0.063,204.89,204.86,8.91373555]
[1739086422353,0.063,204.89,204.86,91.91373555]
[1739086423851,0.063,204.89,204.86,86.4169]
[1739086424147,0.063,204.89,204.86,83.0]
[1739086426753,0.063,204.89,204.86,86.4169]
[1739086433164,0.063,204.89,204.86,91.91373555]
[1739086433366,0.063,204.89,204.87,5.49683555]
[1739086434265,0.063,204.89,204.87,88.49683555]
[1739086435748,0.063,204.89,204.88,3.4166]
[1739086438167,5.21583555,204.94,204.88,3.4166]
[1739086438370,5.21583555,204.94,204.88,86.4166]
[1739086439644,3.54079,204.96,204.88,86.4166]
[1739086439645,5.49683555,204.92,204.88,86.4166]
[1739086440773,5.49683555,204.89,204.88,83.0]
[1739086440960,5.49683555,204.89,204.85,3.4171]
[1739086441348,5.49683555,204.9,204.85,3.4171]
[1739086441544,5.49683555,204.91,204.85,3.4171]
[1739086441779,5.49683555,204.92,204.85,3.4171]
[1739086442866,5.49683555,204.92,204.85,5.49683555]
[1739086444075,5.49683555,204.92,204.86,3.4169]
[1739086444673,5.49683555,204.94,204.87,5.49683555]
[1739086444971,5.49683555,204.95,204.88,5.49683555]
[1739086445972,20.0,204.93,204.89,3.4164]
[1739086448568,20.0,204.93,204.87,88.49683555]
[1739086448778,20.0,204.93,204.88,3.4166]
[1739086449148,20.0,204.93,204.88,86.4166]
[1739086449552,5.49683555,204.93,204.88,86.4166]
[1739086450162,5.49683555,204.93,204.88,83.0]
[1739086450765,0.12549,204.92,204.88,83.0]
[1739086453176,5.49683555,204.91,204.88,83.0]
[1739086454977,5.62232555,204.89,204.88,83.0]
[1739086455178,20.12549,204.86,204.85,0.03]
[1739086455378,25.62232555,204.86,204.85,0.03]
[1739086457174,29.16471555,204.86,204.85,0.03]
[1739086458182,25.62232555,204.86,204.85,0.03]
[1739086458380,11.73243555,204.9,204.85,0.03]
[1739086458584,5.55983555,204.94,204.87,5.49683555]
[1739086458789,0.063,204.94,204.9,5.49683555]
[1739086459490,0.063,204.94,204.91,5.49683555]
[1739086459697,0.063,204.94,204.92,5.49683555]
[1739086459903,0.063,204.94,204.93,5.49683555]
[1739086461176,0.063,204.94,204.93,8.91263555]
[1739086464098,0.063,204.94,204.92,3.4159]
[1739086465269,0.063,204.94,204.9,3.4161]
[1739086465486,5.49683555,204.91,204.89,218.8]
[1739086467089,0.063,204.94,204.89,218.8]
[1739086467090,5.49683555,204.92,204.89,218.8]
[1739086467587,5.55983555,204.94,204.89,218.8]
[1739086467792,0.063,204.94,204.89,222.2163]
[1739086468892,8.64071617,204.94,204.89,222.2163]
[1739086469690,0.063,204.94,204.89,222.2163]
[1739086469894,0.063,204.94,204.89,86.4163]
[1739086470093,8.64071617,204.94,204.89,86.4163]
[1739086471396,0.063,204.94,204.89,86.4163]
[1739086471780,8.64071617,204.94,204.89,86.4163]
[1739086473499,0.063,204.94,204.89,86.4163]
[1739086476197,8.64071617,204.94,204.89,86.4163]
[1739086478303,0.063,204.94,204.89,86.4163]
[1739086480300,8.57771617,204.93,204.89,86.4163]
[1739086480601,8.57771617,204.93,204.89,83.0]
[1739086480602,8.57771617,204.9,204.89,83.0]
[1739086481875,8.57771617,204.9,204.88,0.03]
[1739086482281,8.57771617,204.91,204.88,0.03]
[1739086482902,8.57771617,204.9,204.88,0.03]
[1739086483276,8.57771617,204.9,204.89,0.03]
[1739086486609,8.57771617,204.91,204.89,0.03]
[1739086486807,8.57771617,204.92,204.89,0.03]
[1739086487404,8.64071617,204.94,204.89,0.03]
[1739086488007,0.063,204.94,204.89,0.03]
[1739086488213,0.063,204.94,204.89,83.39304261]
[1739086488702,0.063,204.94,204.9,3.4163]
[1739086490907,5.55225957,204.94,204.9,3.4163]
[1739086492991,0.063,204.94,204.9,3.4163]
[1739086496389,0.063,204.94,204.89,83.03]
[1739086496390,20.0,204.93,204.89,88.51925957]
[1739086496587,20.0,204.92,204.89,83.03]
[1739086497110,5.48925957,204.93,204.89,86.4464]
[1739086499586,5.48925957,204.93,204.89,0.03]
[1739086500108,5.55225957,204.94,204.89,0.03]
[1739086500509,5.48925957,204.93,204.89,0.03]
[1739086502511,0.063,204.94,204.89,0.03]
[1739086504315,0.063,204.94,204.9,1.5028]
[1739086506414,5.48925957,204.93,204.9,1.5028]
[1739086506594,5.48925957,204.91,204.89,83.03]
[1739086506794,3.4787,204.94,204.89,0.03]
[1739086506795,11.22949914,204.9,204.89,0.03]
[1739086507001,27.69727785,204.9,204.89,0.03]
[1739086507413,41.10912638,204.9,204.89,0.03]
[1739086507730,20.25098,204.86,204.85,0.03]
[1739086507903,25.74023957,204.86,204.85,0.03]
[1739086509114,25.61474957,204.86,204.85,0.03]
[1739086509822,25.74023957,204.86,204.85,0.03]
[1739086511413,5.48925957,204.86,204.85,0.03]
[1739086511616,5.48925957,204.89,204.85,0.03]
[1739086511826,5.48925957,204.9,204.85,0.03]
[1739086512333,5.48925957,204.89,204.85,0.03]
[1739086514519,5.48925957,204.88,204.85,0.03]
[1739086514718,5.48925957,204.86,204.85,0.03]
[1739086518623,5.61474957,204.86,204.85,0.03]
[1739086519612,22.5689881,204.86,204.85,0.03]
[1739086519811,23.48459838,204.86,204.85,0.03]
[1739086520310,0.25098,204.82,204.8,0.03]
[1739086520534,6.65598209,204.81,204.8,0.03]
[1739086520706,23.48563062,204.81,204.8,0.03]
[1739086521030,45.4426689,204.81,204.8,0.03]
[1739086521620,0.25098,204.77,204.71,0.03]
[1739086521810,5.48925957,204.73,204.71,0.03]
[1739086522629,8.59641913,204.73,204.71,0.03]
[1739086526425,8.59641913,204.74,204.71,0.03]
[1739086528436,8.59641913,204.73,204.71,0.03]
[1739086529340,8.59641913,204.74,204.71,0.03]
[1739086529542,8.59641913,204.73,204.71,0.03]
[1739086531146,8.59641913,204.72,204.71,0.03]
[1739086532347,28.72190913,204.74,204.71,0.03]
[1739086536338,91.59641913,204.77,204.71,0.03]
[1739086536515,8.59641913,204.77,204.71,0.03]
[1739086536722,0.12549,204.76,204.71,0.03]
[1739086537330,0.12549,204.76,204.71,3.4494]
[1739086539042,8.59641913,204.76,204.71,3.4494]
[1739086539242,8.59641913,204.74,204.71,0.03]
[1739086539447,8.72190913,204.73,204.71,0.03]
[1739086539623,0.12549,204.73,204.71,0.03]
[1739086540044,0.12549,204.74,204.71,0.03]
[1739086541038,28.59641913,204.77,204.71,0.03]
[1739086541847,92.57039,204.8,204.68,0.03]
[1739086541848,33.66282853,204.69,204.68,0.03]
[1739086542141,13.53733853,204.66,204.65,0.03]
[1739086542345,23.05025917,204.66,204.65,0.03]
[1739086543239,9.63841064,204.66,204.65,0.03]
[1739086543424,8.72190913,204.66,204.65,0.03]
[1739086543623,8.84739913,204.66,204.65,0.03]
[1739086543843,9.7637754,204.66,204.65,0.03]
[1739086545144,8.84739913,204.66,204.65,0.03]
[1739086547350,28.84739913,204.66,204.65,0.03]
[1739086548643,25.75691604,204.66,204.65,0.03]
[1739086549142,25.63142604,204.66,204.65,0.03]
[1739086551448,25.75691604,204.66,204.65,0.03]
[1739086554150,42.58906457,204.66,204.65,0.03]
[1739086554353,22.58906457,204.66,204.65,0.03]
[1739086555248,25.75691604,204.66,204.65,0.03]
[1739086555551,5.75691604,204.66,204.65,0.03]
[1739086558556,25.75691604,204.66,204.65,0.03]
[1739086559247,25.63142604,204.66,204.65,0.03]
[1739086560352,25.75691604,204.66,204.65,0.03]
[1739086560735,9.17721604,204.66,204.65,0.03]
[1739086561049,22.58906457,204.66,204.65,0.03]
[1739086563845,24.25036457,204.66,204.65,0.03]
[1739086566374,1.0,204.65,204.64,0.03]
[1739086566661,39.16876457,204.62,204.61,0.03]
[1739086566858,42.58966457,204.62,204.61,0.03]
[1739086567379,25.75691604,204.62,204.61,0.03]
[1739086568279,5.50593604,204.64,204.61,0.03]
[1739086568645,20.0,204.62,204.61,0.03]
[1739086571650,5.50593604,204.64,204.61,0.03]